Cogmind - Beta 13 @@@ ROGUE MODE // 2024.03.23 @ 21:27:43 Player: f_ Result: Self-destructed Performance ------------- Evolutions (0) 0 Regions Visited (4) 800 Robots Destroyed (15) 75 Value Destroyed (208) 208 Prototype IDs (6) 120 Alien Tech Used (0) 0 Bonus (270) 270 TOTAL SCORE: 1473 Bonus ------- Aligned with FarCom 300 Friendly Fire -30 Cogmind --------- Core Integrity 2/250 Matter 300/300 Energy 250/250 System Corruption 0% Temperature Cool (0) Movement Hovering (160) Ox1 Location -9/Mines Parts ------- > --- POWER (1) -------- Ion Engine > --- PROPULSION (2) --- Carbon-fiber Leg Combat Airjet > --- UTILITY (2) ------ Medium Storage Unit > --- WEAPON (2) ------- AWS/Thermal > --- INVENTORY (10) --- Weight Redist. System Experimental Sensor Array Cloak of Protection Core Shielding Heavy EM Pulse Gun YOLO Cannon Light Assault Rifle Light Cannon Peak State ------------ > --- POWER ------------ Light Ion Engine > --- PROPULSION ------- Aluminum Leg Aluminum Leg > --- UTILITY ---------- Medium Storage Unit Experimental Sensor Array > --- WEAPON ----------- YOLO Cannon > --- INVENTORY -------- Ion Engine Weight Redist. System Core Shielding Weapon Shielding AWS/Thermal Light Assault Rifle Light Cannon Grenade Launcher Signal Generator [Rating: 35] Favorites ----------- Power Ion Engine Engine Ion Engine Propulsion Aluminum Leg Leg Aluminum Leg Hover Unit Combat Airjet Utility Medium Storage Unit Device Experimental Sensor Array Storage Medium Storage Unit Protection Core Shielding Weapon Medium Laser Energy Gun Medium Laser Energy Cannon YOLO Cannon Ballistic Gun Assault Rifle Launcher Grenade Launcher Build | -11 -10 -10 -10 -9 ------- Run | Yrd Mat Min Exi Min Slots Evolved . | . . . . . Power . | . . . . . Propulsion . | . . . . . Utility . | . . . . . Weapon . | . . . . . Parts Attached 24 | 7 7 1 5 4 Power 3 | 1 1 . . 1 Engine 3 | 1 1 . . 1 Core . | . . . . . Reactor . | . . . . . Propulsion 4 | 2 . . . 2 Treads . | . . . . . Leg 3 | 2 . . . 1 Wheel . | . . . . . Hover 1 | . . . . 1 Flight . | . . . . . Utility 7 | 1 3 1 2 . Device 2 | . . 1 1 . Storage 2 | 1 1 . . . Processor . | . . . . . Hackware . | . . . . . Protection 3 | . 2 . 1 . Artifact . | . . . . . Weapon 10 | 3 3 . 3 1 Energy Gun 3 | 1 . . 1 1 Energy Cannon 2 | . . . 2 . Ballistic Gun 3 | 2 1 . . . Ballistic Cannon . | . . . . . Launcher 2 | . 2 . . . Special Weapon . | . . . . . Impact Weapon . | . . . . . Slashing Weapon . | . . . . . Piercing Weapon . | . . . . . Special Melee Weapon . | . . . . . Unidentified Prototypes 4 | . . 1 3 . Parts Lost 4 | . . . . 4 Power 1 | . . . . 1 Propulsion 2 | . . . . 2 Utility 1 | . . . . 1 Weapon . | . . . . . Highest Loss Streak 4 | . . . . 4 To Critical Strikes . | . . . . . Average Slot Usage (%) 88 | . 92 100 91 69 Engine 13 | . 14 14 14 13 Leg 24 | . 28 28 28 14 Hover 2 | . . . . 12 Device 3 | . . 10 6 . Storage 14 | . 14 14 14 14 Protection 4 | . 6 3 7 1 Energy Gun 12 | . 14 14 6 14 Energy Cannon 1 | . . . 7 . Ballistic Gun 4 | . 11 . . . Launcher 4 | . 2 14 6 . Naked Turns . | . . . . . Heaviest Build 32 | 14 21 19 32 23 Greatest Support 20 | 20 20 20 20 20 Greatest Overweight (x) 7 | . 1 . 1 7 Average Overweight (x) . | . . . . 1 Largest Inventory Capacity 10 | 8 10 10 10 10 Average Capacity 9 | 7 8 10 10 10 Most Carried 10 | 4 7 9 10 9 Average Carried 7 | 1 4 7 8 8 Final Capacity 10 | 8 10 10 10 10 Final Carried 9 | 2 6 9 9 9 Class Distribution -------------------- 100% | Mutant Dominant Class ---------------- Mutant | -10/Materials Mutant | -10/Mines Mutant | -10/Exiles Mutant | -9/Mines Resources | -11 -10 -10 -10 -9 ----------- Run | Yrd Mat Min Exi Min Matter Collected 496 | 188 81 88 . 139 Remotely . | . . . . . Salvage Created 346 | . 110 66 . 170 Parts 25 | . 12 5 . 8 Haulers Intercepted 1 | . 1 . . . Recyclers Shooed . | . . . . . Parts Field Recycled . | . . . . . Retrieved Matter . | . . . . . Parts Self-Destructed . | . . . . . Prevented . | . . . . . Kills | -11 -10 -10 -10 -9 ------- Run | Yrd Mat Min Exi Min Combat Hostiles Destroyed 19 | . 3 3 . 13 Guns 16 | . . 3 . 13 AOE 3 | . 3 . . . Classes Destroyed 7 | . 4 1 . 2 Worker 1 | . . 1 . . Hauler 1 | . 1 . . . Operator 1 | . 1 . . . Watcher 1 | . 1 . . . Swarmer 10 | . 3 3 . 4 Demolisher 1 | . . . . 1 Assembled 8 | . . . . 8 Best Kill Streak 11 | . 3 2 . 11 Combat Bots Only 11 | . 3 2 . 11 Max Kills in Single Turn 3 | . 3 1 . 1 Gunslinging . | . . . . . Exploded 3 | . 3 . . . Melee . | . . . . . Uniques/NPCs Destroyed . | . . . . . Combat | -11 -10 -10 -10 -9 -------- Run | Yrd Mat Min Exi Min Hostile Shots Fired 84 | . 3 11 . 70 Missed 24 | . 2 2 . 20 Damage Taken 944 | . 9 73 . 862 Core 248 | . . 6 . 242 Absorbed by Shields . | . . . . . Redirected to Shielding 52 | . . . . 52 Core Remaining (%) 100 | 100 . . . . Volleys Fired 34 | . 16 18 . . Largest 2 | . 2 1 . . Hottest 70 | . 70 50 . . Shots Fired 91 | . 28 18 . 45 Gun 87 | . 24 18 . 45 Cannon . | . . . . . Launcher 4 | . 4 . . . Special . | . . . . . Kinetic 12 | . 12 . . . Thermal 75 | . 12 18 . 45 Explosive 4 | . 4 . . . Electromagnetic . | . . . . . Robot Hit Streak 6 | . 4 3 . 6 Robot Miss Streak 5 | . 5 2 . 3 Penetration Max . | . . . . . Secondary Targets . | . . . . . Autonomous 45 | . . . . 45 Shots Hit Robots 50 | . 12 10 . 28 Core Hits 28 | . 9 5 . 14 Critical Kills . | . . . . . Critical Parts Destroyed . | . . . . . Critical Strikes 2 | . 2 . . . Burn 2 | . 2 . . . Melee Attacks . | . . . . . Impact . | . . . . . Slashing . | . . . . . Piercing . | . . . . . Sneak Attacks . | . . . . . Combat Hostiles . | . . . . . Follow-up Attacks . | . . . . . Damage Inflicted 1310 | . 300 127 . 883 Guns 1164 | . 154 127 . 883 Cannons . | . . . . . Explosions 146 | . 146 . . . Melee . | . . . . . Ramming . | . . . . . Kinetic 92 | . 92 . . . Thermal 1072 | . 62 127 . 883 Explosive 146 | . 146 . . . Electromagnetic . | . . . . . Impact . | . . . . . Slashing . | . . . . . Piercing . | . . . . . Highest Corruption . | . . . . . Average Corruption . | . . . . . Corruption Purged . | . . . . . Corruption Blocked . | . . . . . Overload Shots . | . . . . . Overflow Damage . | . . . . . Projectiles . | . . . . . Explosions . | . . . . . Melee . | . . . . . Knockbacks . | . . . . . Impact . | . . . . . Kinetic . | . . . . . Secondary . | . . . . . Self-Inflicted Damage . | . . . . . Shots . | . . . . . Rammed . | . . . . . Targets Rammed . | . . . . . Kicked . | . . . . . Crushed . | . . . . . Highest Temperature 70 | . 27 70 . 2 Average Temperature 20 | . 11 28 . 2 Received Heat Transfer 80 | . . . . 80 Siege Activations . | . . . . . Robots Corrupted . | . . . . . Combat Hostiles . | . . . . . Parts Fried . | . . . . . Impact Corruptions . | . . . . . Robots Melted . | . . . . . Combat Hostiles . | . . . . . Parts Melted 5 | . 2 2 . 1 Heat Transferred 1850 | . 333 370 . 1147 Parts Sabotaged . | . . . . . Parts Stolen . | . . . . . Parts Stripped . | . . . . . Power Chain Reactions . | . . . . . Alert | -11 -10 -10 -10 -9 ------- Run | Yrd Mat Min Exi Min Peak Influence 141 | . 133 141 . 109 Initial 51 | . . 51 . . Average 48 | . 36 79 . 46 Maximum Alert Level . | . . . . . Low Security (%) 100 | 100 100 100 . 100 Level 1 . | . . . . . Level 2 . | . . . . . Level 3 . | . . . . . Level 4 . | . . . . . Level 5 . | . . . . . High Security . | . . . . . Max Security . | . . . . . Squads Dispatched 2 | . 1 1 . . Investigation . | . . . . . Extermination . | . . . . . Reinforcement 1 | . 1 . . . Assault 1 | . . 1 . . Garrison . | . . . . . Intercept . | . . . . . Searches Triggered . | . . . . . Construction Impeded . | . . . . . Haulers Reinforced . | . . . . . Active Scanning Responses . | . . . . . Cargo Convoy Interrupts . | . . . . . Stealth | -11 -10 -10 -10 -9 --------- Run | Yrd Mat Min Exi Min Distress Signals . | . . . . . Communications Jammed . | . . . . . Distress Signals . | . . . . . Times Spotted 36 | . 10 3 . 23 Peak Tracking Total 14 | . 3 3 . 14 Tactical Retreats 2 | . . 1 . 1 Traps | -11 -10 -10 -10 -9 ------- Run | Yrd Mat Min Exi Min Traps Triggered . | . . . . . Indirectly . | . . . . . Trap Hack Attempts . | . . . . . Triggered . | . . . . . Disarmed . | . . . . . Reprogrammed . | . . . . . Reused . | . . . . . Traps Extracted . | . . . . . Installed . | . . . . . Triggered . | . . . . . Machines | -11 -10 -10 -10 -9 ---------- Run | Yrd Mat Min Exi Min Machines Disabled 2 | . 2 . . . Max in Single Turn 2 | . 2 . . . Machines Repaired . | . . . . . Machines Dismantled . | . . . . . Machines Sabotaged . | . . . . . Overloaded Fab Kills . | . . . . . Hacking | -11 -10 -10 -10 -9 --------- Run | Yrd Mat Min Exi Min Machines Accessed 3 | . 3 . . . Terminals 3 | . 3 . . . Fabricators . | . . . . . Repair Stations . | . . . . . Recycling Units . | . . . . . Scanalyzers . | . . . . . Garrison Access . | . . . . . Total Hacks 3 | . 3 . . . Successful 3 | . 3 . . . Failed . | . . . . . Catastrophic . | . . . . . Database Lockouts . | . . . . . Manual 1 | . . . 1 . Terminals 3 | . 3 . . . Fabricators . | . . . . . Repair Stations . | . . . . . Recycling Units . | . . . . . Scanalyzers . | . . . . . Garrison Access . | . . . . . Terminal Hacks 3 | . 3 . . . Prototype ID Bank 1 | . 1 . . . Branch Access Points 1 | . 1 . . . Investigation Status 1 | . 1 . . . Fabricator Hacks . | . . . . . Repair Station Hacks . | . . . . . Recycling Unit Hacks . | . . . . . Scanalyzer . | . . . . . Garrison Access Hacks . | . . . . . Unauthorized Hacks . | . . . . . Terminals . | . . . . . Fabricators . | . . . . . Repair Stations . | . . . . . Recycling Units . | . . . . . Scanalyzers . | . . . . . Garrison Access . | . . . . . Data Cores Recovered 1 | . 1 . . . Used . | . . . . . Hacking Detections . | . . . . . Full Trace Events . | . . . . . Feedback Events . | . . . . . Feedback Blocked . | . . . . . Robot Schematics Acquired . | . . . . . Robots Built . | . . . . . Authchips . | . . . . . Time . | . . . . . Total Robot Build Rating . | . . . . . Part Schematics Acquired . | . . . . . Parts Built . | . . . . . Authchips . | . . . . . Time . | . . . . . Total Part Build Rating . | . . . . . Parts Repaired . | . . . . . Time . | . . . . . Parts Recycled . | . . . . . Recycled Matter . | . . . . . Retrieved Matter . | . . . . . Retrieved Components . | . . . . . Parts Scanalyzed . | . . . . . Part Schematics Acquired . | . . . . . Parts Damaged . | . . . . . Bothacking | -11 -10 -10 -10 -9 ------------ Run | Yrd Mat Min Exi Min Used RIF Installer . | . . . . . Robots Hacked . | . . . . . Non-combat . | . . . . . Combat . | . . . . . Robot Hacks Applied . | . . . . . Relay Couplers Released . | . . . . . Fabnet Peak Effective % . | . . . . . Robots Rewired . | . . . . . Allies Hacked . | . . . . . Hacks Repelled . | . . . . . Allies | -11 -10 -10 -10 -9 -------- Run | Yrd Mat Min Exi Min Total Allies 1 | . . 1 . . Largest Group 1 | . . 1 1 1 Highest-Rated Group 31 | . . 31 31 31 Highest-Rated Ally 31 | . . 31 31 31 Total Orders . | . . . . . Ally Attacks 2 | . . . . 2 Total Damage 42 | . . . . 42 Kills 1 | . . . . 1 Allies Corrupted . | . . . . . Allies Melted . | . . . . . Intel | -11 -10 -10 -10 -9 ------- Run | Yrd Mat Min Exi Min Robot Analysis Total . | . . . . . Derelict Logs Recovered 1 | . . 1 . . Drone Launches . | . . . . . Drone Recoveries . | . . . . . Exploration | -11 -10 -10 -10 -9 ------------- Run | Yrd Mat Min Exi Min Turns Passed 1762 | 48 592 327 382 413 Spaces Moved 1088 | 32 384 230 246 196 Core 11 | 8 . . . 3 Treads . | . . . . . Legs 903 | 24 384 230 246 19 Wheels . | . . . . . Hover 174 | . . . . 174 Flight . | . . . . . Fastest Speed 50 | 50 120 120 120 120 Average Speed 136 | 102 125 120 149 165 Slowest Speed 400 | 120 190 120 190 400 Overloaded Moves . | . . . . . Propulsion Burnouts . | . . . . . Robots Hopped . | . . . . . Cave-ins Triggered . | . . . . . Exploration Rate (%) 41 | 3 51 54 61 37 Regions Visited 4 Branch Regions 3 Pre-discovered Areas 1 | . . 1 . . Known Exits Taken 1 | . 1 . . . Unknown Exits Taken 3 | 1 . 1 1 . Scrap Searched 2 | . . 1 . 1 Spaces Dug 20 | . 20 . . . Terrain Destroyed 41 | . 27 . . 14 Melee . | . . . . . Projectile 14 | . . . . 14 AOE 27 | . 27 . . . Terrain Rammed . | . . . . . Walls Destroyed . | . . . . . Machines Disabled . | . . . . . Actions | -11 -10 -10 -10 -9 --------- Run | Yrd Mat Min Exi Min Total 1324 | 46 466 263 264 285 Wait 141 | . 50 11 . 80 Move 1084 | 31 383 229 245 196 Hop . | . . . . . Pick Up 27 | 8 7 3 5 4 Fast Attach 1 | . . . 1 . Attach 16 | 6 2 1 3 4 Detach 3 | . 1 1 1 . Swap 7 | 1 5 . 1 . Drop 11 | . 2 . 8 1 Fire 34 | . 16 18 . . Melee . | . . . . . Ram . | . . . . . Kick . | . . . . . Crush . | . . . . . Escape Stasis . | . . . . . Rewire . | . . . . . Trap . | . . . . . Miscellaneous . | . . . . . Route ------- -11/Scrapyard -10/Materials (discovered 2 exits: [*Mat] / *Min) -10/Mines (discovered 3 exits: [*Mat x2] / *Exi) -10/Exiles (discovered 2 exits: [*Min x2]) -9/Mines History --------- Turn | Location | Event 7 | -11/Scrapyard | Discovered new exit (range 15) 49 | -11/Scrapyard | Entered Materials 317 | -10/Materials | Build established: Mutant 428 | -10/Materials | Discovered new exit (range 13) 447 | -10/Materials | Identified exit to Mines 641 | -10/Materials | Entered Mines 672 | -10/Mines | YI-UF0 nonchalantly dropped a Grenade Launcher on the ground 677 | -10/Mines | Discovered new exit (range 7) 689 | -10/Mines | Discovered new exit (range 8) 728 | -10/Mines | Found a damaged Exp. Sensor Array with a note attached 730 | -10/Mines | Found Prototype Device 732 | -10/Mines | Identified Exp. Sensor Array 811 | -10/Mines | Learned location of Zion (-7) 836 | -10/Mines | Deemed a non-threat by the Exiles lab entrance 836 | -10/Mines | Discovered new exit (range 5) 913 | -10/Mines | Met a Derelict testing a Signal Generator 926 | -10/Mines | Found Signal Generator 968 | -10/Mines | Entered Exiles 968 | -10/Exiles | Accompanied by 1 ally 986 | -10/Exiles | Discovered new exit (range 15) 1031 | -10/Exiles | Met 8R-AWN 1048 | -10/Exiles | Met EX-HEX 1080 | -10/Exiles | Met EX-BIN 1096 | -10/Exiles | Aligned with FarCom system 1097 | -10/Exiles | Given EX-Vault access code 1124 | -10/Exiles | Opened EX-Vault 1131 | -10/Exiles | Found Prototype Energy Cannon 1133 | -10/Exiles | Identified YOLO Cannon 1138 | -10/Exiles | Found Prototype Energy Gun 1139 | -10/Exiles | Identified AWS/Thermal 1146 | -10/Exiles | Found Prototype Device 1147 | -10/Exiles | Identified Cloak of Protection 1204 | -10/Exiles | Warned to stay clear of 0b10 Research branches 1209 | -10/Exiles | Exiles lab attacked by MAIN.C 1325 | -10/Exiles | Discovered new exit (range 14) 1350 | -10/Exiles | Stole three prototypes: YOLO Cannon, Cloak of Protection, AWS/Thermal 1350 | -10/Exiles | Entered Mines 1350 | -9/Mines | Accompanied by 1 ally 1351 | -9/Mines | Assembled infested the area 1356 | -9/Mines | Assisted by a Guerilla fighting off Assembled 1384 | -9/Mines | Core integrity fell below 50% 1392 | -9/Mines | Core integrity fell below 20% 1395 | -9/Mines | Lost 3 allies 1416 | -9/Mines | Lost 4 parts (1p2n1u) 1418 | -9/Mines | Destroyed 11 combat bots 1763 | -9/Mines | Self-destructed Last Messages --------------- 01429_ The unstable cave ceiling collapses. 01429_ U-05 Engineer builds a Wall. 01431_ The unstable cave ceiling collapses. 01434_ U-05 Engineer lays Concrete. 01435_ U-05 Engineer builds a Wall. 01441_ Acquired 97 matter. 01443_ U-05 Engineer builds a Wall. 01447_ U-05 Engineer lays Concrete. 01448_ U-05 Engineer builds a Wall. 01480_ K-01 Serf collects debris. 01587_ Searching scrap... 01587_ Found Hvy. EM Pulse Gun. 01587_ Found Rocket Launcher. 01587_ Found 15 Matter. 01588_ Acquired 15 matter. 01590_ Acquired Hvy. EM Pulse Gun. 01657_ Acquired 13 matter. 01682_ Destroyed Flight Unit. 01683_ Destroyed Lgt. Ion Engine. 01684_ S-10 Pest destroyed. Map ----- +----------------------------------------------------+ | | | | | | | | | | | | | ??????????????????????????????????????? | | ??????????????####????????????????????? | | ??############# ####?######??????????? | | ?## ### ###????????? | | ## ######???? | | # ##### = % #???? | | ##???## % ##### #??? | | ##?????## #### #???## #??? | | ##???????######??# %#?????######??? | | ####???????????????##=%#?????????????? | | ##?????????????????## #?????????????? | | #??????????????????# #?????????????? | | ???????????????????# #?????????????? | | ???????????????????# #?????????????? | | ???????????????????# ##?????????##?? | | ???????????????????# " #???????## #?? | | ???????###?????????## *######## "#?? | | ??????## ##?????????## =### ## ##? | | ??????# ####???????##s# # % #? | | ??????## #???????##%#@# ## # = #? | | ??????## ### ##########[#### # [%##? | | #???### #?# " %="#? | | ##### #?######### ###### = #? | | ##?????????# ## s ## ##? | | ##??????????# ### # ####?? | | #???????????# #?# ## ##????? | | #???????????# #?##?### #?????? | | #??????????# #??????#####?????? | | #???????# ????????????????? | | ### #??????###????????????????? | | ##?## #?????????????????????????? | | #???# #?????????????????????????? | | ????# #????????????????????????? | | ????## ???????????????????????? | | ??????# ??????????????????????? | | ???????# ####??????????????????????? | | ???????? ##?????????????????????????? | | ???????? ##??????????????????????????? | | ???????? #???????????????????????????? | | ??????????????????????????????????????? | | ??????????????????????????????????????? | | ??????????????????????????????????????? | | ??????????????????????????????????????? | | ??????????????????????????????????????? | +----------------------------------------------------+ Best States ------------- Heat Dissipation 25 Energy Generation 10 Energy Capacity 250 Matter Stores 300 Matter Capacity 300 Sight Range 16 Robot Scan Range 20 Terrain Scan Density 10 Core Shielding 20 Weapon Shielding 33 Evasion (%) 55 Item Schematics ----------------- None Robot Schematics ------------------ None Fabricated ------------ Nothing Alien Tech Used ----------------- None Achievements -------------- None Challenges ------------ None Game ------ Seed AblativeIntegrityTerminator Manual? 0 Play Time 00:20:49 Cumulative 42.9 hours Start 2024.03.23 @ 21:04:55 End 2024.03.23 @ 21:27:43 Sessions 1 Manual Loads 0 Difficulty Rogue Special Mode None Game No. 33 Rogue 31 Adventurer 0 Explorer 2 Win Type - Total 0 Types 0/0/0/0/0/0/0/0/0 Lore% 15 Gallery% 26 Achievement% 19 Wizard Run 0 Options --------- Layout 1 ASCII 0 Keyboard 0 Movement Mouse Keybinds 0 Fullscreen 2 Font 48/Tamsyn Map View 50x35 Zoom Use 0% Tactical HUD 1 Map Filters NONE Filters NONE Steam 1 RUN: 841a7bb1-b032-49d6-9c39-b5286ee462e2